[Event "*** Titled Tuesday Blitz"]
[Site "Chess.com"]
[Date "2020.03.03"]
[Round "2"]
[White "aridannie"]
[Black "earling8018"]
[Result "1-0"]
[WhiteElo "2424"]
[BlackElo "2010"]
[TimeControl "180+1"]
[EndTime "9:16:49 PST"]
[Termination "aridannie won by resignation"]

1. e4 {[%clk 0:03:00.9]} 1... e5 {[%clk 0:02:57.8]} 2. Nf3 {[%clk 0:03:00.7]}
2... Nc6 {[%clk 0:02:57.6]} 3. d4 {[%clk 0:02:59.5]} 3... exd4 {[%clk
0:02:56.1]} 4. Nxd4 {[%clk 0:02:59.3]} 4... Nf6 {[%clk 0:02:56.4]} 5. Nxc6
{[%clk 0:02:58.9]} 5... bxc6 {[%clk 0:02:55.2]} 6. e5 {[%clk 0:02:58.5]} 6...
Qe7 {[%clk 0:02:53.9]} 7. Qe2 {[%clk 0:02:58]} 7... Nd5 {[%clk 0:02:54.4]} 8. c4
{[%clk 0:02:58]} 8... Ba6 {[%clk 0:02:50.9]} 9. Nd2 {[%clk 0:02:55.7]} 9... Nb6
{[%clk 0:02:34.7]} 10. b3 {[%clk 0:02:50.8]} 10... d6 {[%clk 0:02:09.3]} 11. Bb2
{[%clk 0:02:46.5]} 11... O-O-O {[%clk 0:02:01.4]} 12. O-O-O {[%clk 0:02:22.8]}
12... Qe6 {[%clk 0:01:46.7]} 13. exd6 {[%clk 0:02:14.9]} 13... Qxe2 {[%clk
0:01:28.1]} 14. Bxe2 {[%clk 0:02:09.6]} 14... cxd6 {[%clk 0:01:28.2]} 15. Bg4+
{[%clk 0:02:06.2]} 15... Kc7 {[%clk 0:01:25.7]} 16. Rhe1 {[%clk 0:02:03.7]}
16... h5 {[%clk 0:01:13.6]} 17. Bh3 {[%clk 0:01:58.6]} 17... Rh6 {[%clk
0:01:09.9]} 18. Ne4 {[%clk 0:01:54.8]} 18... Nd7 {[%clk 0:00:47.1]} 19. Ng5
{[%clk 0:01:51]} 19... Rg6 {[%clk 0:00:25.6]} 20. Nxf7 {[%clk 0:01:49.2]} 20...
Rb8 {[%clk 0:00:23.2]} 21. g3 {[%clk 0:01:40.8]} 21... Nf6 {[%clk 0:00:18.5]}
22. Bf5 {[%clk 0:01:36.3]} 1-0

[Event "*** Titled Tuesday Blitz"]
[Site "Chess.com"]
[Date "2020.03.03"]
[Round "2"]
[White "Jospem"]
[Black "Berardino"]
[Result "1-0"]
[WhiteElo "2917"]
[BlackElo "2638"]
[TimeControl "180+1"]
[EndTime "9:16:51 PST"]
[Termination "Jospem won by resignation"]

1. c4 {[%clk 0:03:00.9]} 1... e6 {[%clk 0:02:58]} 2. g3 {[%clk 0:03:01.3]} 2...
d5 {[%clk 0:02:58.1]} 3. Nf3 {[%clk 0:03:02.2]} 3... Nf6 {[%clk 0:02:58.2]} 4.
Bg2 {[%clk 0:03:02.9]} 4... Be7 {[%clk 0:02:58.7]} 5. O-O {[%clk 0:03:03.8]}
5... O-O {[%clk 0:02:59.2]} 6. b3 {[%clk 0:03:04.4]} 6... b6 {[%clk 0:02:59.1]}
7. Bb2 {[%clk 0:03:04.8]} 7... Bb7 {[%clk 0:02:59.5]} 8. e3 {[%clk 0:03:05.4]}
8... c5 {[%clk 0:02:59.5]} 9. Qe2 {[%clk 0:03:06]} 9... dxc4 {[%clk 0:02:52.8]}
10. bxc4 {[%clk 0:03:05.9]} 10... Nc6 {[%clk 0:02:44]} 11. d3 {[%clk 0:03:05.4]}
11... a6 {[%clk 0:02:22.8]} 12. Nc3 {[%clk 0:03:05.1]} 12... Qc7 {[%clk
0:02:10]} 13. Ne1 {[%clk 0:02:59.4]} 13... Na7 {[%clk 0:02:07.4]} 14. a4 {[%clk
0:02:57.6]} 14... Bxg2 {[%clk 0:02:06.6]} 15. Nxg2 {[%clk 0:02:58.5]} 15... Nc6
{[%clk 0:02:07.1]} 16. g4 {[%clk 0:02:56.7]} 16... Rfd8 {[%clk 0:02:03.2]} 17.
Rad1 {[%clk 0:02:52.2]} 17... Nb4 {[%clk 0:02:01.5]} 18. g5 {[%clk 0:02:50.8]}
18... Nd7 {[%clk 0:01:59.8]} 19. f4 {[%clk 0:02:51.1]} 19... Qc6 {[%clk
0:01:45.1]} 20. h4 {[%clk 0:02:44.2]} 20... Ra7 {[%clk 0:01:33.6]} 21. h5 {[%clk
0:02:43.1]} 21... Nf8 {[%clk 0:01:30.4]} 22. h6 {[%clk 0:02:37.1]} 22... g6
{[%clk 0:01:23.3]} 23. Ba1 {[%clk 0:02:29.6]} 23... Rad7 {[%clk 0:01:21.8]} 24.
Ne4 {[%clk 0:02:00.4]} 24... Nxd3 {[%clk 0:01:04.1]} 25. Nf6+ {[%clk 0:01:56.5]}
25... Bxf6 {[%clk 0:01:00.9]} 26. Bxf6 {[%clk 0:01:57.4]} 26... Qe4 {[%clk
0:00:22.8]} 27. Bxd8 {[%clk 0:01:52.9]} 27... Rxd8 {[%clk 0:00:23.7]} 28. Ne1
{[%clk 0:01:48.6]} 1-0

[Event "*** Titled Tuesday Blitz"]
[Site "Chess.com"]
[Date "2020.03.03"]
[Round "2"]
[White "SantoBlue"]
[Black "MishkaFighter"]
[Result "1-0"]
[WhiteElo "2750"]
[BlackElo "2463"]
[TimeControl "180+1"]
[EndTime "9:16:55 PST"]
[Termination "SantoBlue won by resignation"]

1. e4 {[%clk 0:03:00.8]} 1... c5 {[%clk 0:02:59.1]} 2. Nf3 {[%clk 0:03:00.6]}
2... e6 {[%clk 0:02:58.8]} 3. d4 {[%clk 0:02:59.6]} 3... cxd4 {[%clk 0:02:59.7]}
4. Nxd4 {[%clk 0:03:00.3]} 4... Nc6 {[%clk 0:03:00.1]} 5. Nc3 {[%clk 0:03:00.6]}
5... Qc7 {[%clk 0:03:00.2]} 6. g3 {[%clk 0:03:00.5]} 6... a6 {[%clk 0:02:59.7]}
7. Bg2 {[%clk 0:02:58.5]} 7... Nf6 {[%clk 0:02:58.4]} 8. O-O {[%clk 0:02:58.1]}
8... Nxd4 {[%clk 0:02:58.1]} 9. Qxd4 {[%clk 0:02:58.1]} 9... Bc5 {[%clk
0:02:58.7]} 10. Qd1 {[%clk 0:02:57.3]} 10... d6 {[%clk 0:02:52]} 11. Bf4 {[%clk
0:02:54.5]} 11... h6 {[%clk 0:02:49.4]} 12. Na4 {[%clk 0:02:44.7]} 12... e5
{[%clk 0:02:49.6]} 13. Bd2 {[%clk 0:02:44]} 13... b5 {[%clk 0:02:35.3]} 14. Nxc5
{[%clk 0:02:43.3]} 14... dxc5 {[%clk 0:02:36.2]} 15. f4 {[%clk 0:02:38.6]} 15...
Bb7 {[%clk 0:02:26.8]} 16. Bc3 {[%clk 0:02:37.8]} 16... Rd8 {[%clk 0:02:02.2]}
17. Qe1 {[%clk 0:02:25]} 17... Nd7 {[%clk 0:01:58.9]} 18. fxe5 {[%clk
0:02:04.8]} 18... Nxe5 {[%clk 0:01:49.2]} 19. Ba5 {[%clk 0:02:04.6]} 19... Qe7
{[%clk 0:01:34.3]} 20. Bxd8 {[%clk 0:02:05.5]} 20... Qxd8 {[%clk 0:01:33.4]} 21.
Qc3 {[%clk 0:02:05.1]} 21... Qe7 {[%clk 0:01:32.7]} 22. Rf5 {[%clk 0:02:03.7]}
22... f6 {[%clk 0:01:32]} 23. Rf2 {[%clk 0:02:03.1]} 23... O-O {[%clk
0:01:30.8]} 24. h3 {[%clk 0:02:03.3]} 24... c4 {[%clk 0:01:27.1]} 25. Rd1 {[%clk
0:02:02.7]} 25... Qc5 {[%clk 0:01:18.8]} 26. a3 {[%clk 0:02:02]} 26... Re8
{[%clk 0:01:15.2]} 27. Qd4 {[%clk 0:02:01.6]} 27... Qc7 {[%clk 0:01:13.8]} 28.
Rfd2 {[%clk 0:02:00.8]} 28... Ng6 {[%clk 0:01:08.9]} 29. Kh2 {[%clk 0:02:00.3]}
29... h5 {[%clk 0:01:05.5]} 30. Qd6 {[%clk 0:02:00.1]} 30... Qf7 {[%clk
0:00:55.3]} 31. Qc5 {[%clk 0:01:51.2]} 31... Bxe4 {[%clk 0:00:39.9]} 32. Bxe4
{[%clk 0:01:44.5]} 32... Rxe4 {[%clk 0:00:40.8]} 33. Rd8+ {[%clk 0:01:44.9]}
33... Nf8 {[%clk 0:00:40.5]} 34. Rxf8+ {[%clk 0:01:44.4]} 34... Kh7 {[%clk
0:00:34.9]} 35. Rxf7 {[%clk 0:01:41.8]} 1-0

[Event "*** Titled Tuesday Blitz"]
[Site "Chess.com"]
[Date "2020.03.03"]
[Round "2"]
[White "Sven_Tica"]
[Black "Andrew-FB00"]
[Result "1-0"]
[WhiteElo "2681"]
[BlackElo "1871"]
[TimeControl "180+1"]
[EndTime "9:17:02 PST"]
[Termination "Sven_Tica won by resignation"]

1. d4 {[%clk 0:03:00.9]} 1... Nf6 {[%clk 0:02:59.1]} 2. c4 {[%clk 0:03:01.2]}
2... e6 {[%clk 0:02:59.1]} 3. g3 {[%clk 0:03:01.7]} 3... d5 {[%clk 0:02:57.1]}
4. Bg2 {[%clk 0:03:02.2]} 4... Be7 {[%clk 0:02:52.9]} 5. Nf3 {[%clk 0:03:02.4]}
5... O-O {[%clk 0:02:52.5]} 6. Nc3 {[%clk 0:03:01.8]} 6... b6 {[%clk 0:02:52.3]}
7. O-O {[%clk 0:03:00.2]} 7... Bb7 {[%clk 0:02:52.4]} 8. Ne5 {[%clk 0:03:00.9]}
8... Nbd7 {[%clk 0:02:49.6]} 9. Qa4 {[%clk 0:03:01.1]} 9... Nxe5 {[%clk
0:02:46.2]} 10. dxe5 {[%clk 0:03:01.4]} 10... Ne4 {[%clk 0:02:46.2]} 11. Nxe4
{[%clk 0:02:59]} 11... dxe4 {[%clk 0:02:45.1]} 12. Rd1 {[%clk 0:02:59.6]} 12...
Qe8 {[%clk 0:02:42.8]} 13. Qc2 {[%clk 0:02:59.7]} 13... Rd8 {[%clk 0:02:32.9]}
14. Rxd8 {[%clk 0:02:52.3]} 14... Qxd8 {[%clk 0:02:32.4]} 15. Be3 {[%clk
0:02:52.9]} 15... f5 {[%clk 0:02:21.4]} 16. exf6 {[%clk 0:02:49.5]} 16... Bxf6
{[%clk 0:02:21.4]} 17. Rd1 {[%clk 0:02:43.1]} 17... Qe7 {[%clk 0:02:14.2]} 18.
b3 {[%clk 0:02:40.4]} 18... c5 {[%clk 0:02:08.1]} 19. Bxe4 {[%clk 0:02:40]}
19... Bxe4 {[%clk 0:02:05.9]} 20. Qxe4 {[%clk 0:02:40.9]} 20... g6 {[%clk
0:01:56.3]} 21. Qc6 {[%clk 0:02:35.6]} 21... Rf7 {[%clk 0:01:46.3]} 22. Bh6
{[%clk 0:02:31.8]} 22... Bg7 {[%clk 0:01:40.8]} 23. Bxg7 {[%clk 0:02:27.6]}
23... Kxg7 {[%clk 0:01:38.6]} 24. Kg2 {[%clk 0:02:27.6]} 24... Qf6 {[%clk
0:01:37.5]} 25. f3 {[%clk 0:02:27.7]} 25... Qe5 {[%clk 0:01:30.8]} 26. Rd2
{[%clk 0:02:23.7]} 26... Qg5 {[%clk 0:01:24.2]} 27. Qd6 {[%clk 0:02:18.7]} 27...
Qf6 {[%clk 0:01:16.7]} 28. Qd8 {[%clk 0:02:11.2]} 28... Qc3 {[%clk 0:01:12.5]}
29. Rd7 {[%clk 0:02:07.9]} 29... Qe1 {[%clk 0:00:57.2]} 30. Rxf7+ {[%clk
0:02:02.8]} 30... Kxf7 {[%clk 0:00:56.6]} 31. Qd7+ {[%clk 0:02:02.6]} 31... Kf6
{[%clk 0:00:55.8]} 32. Qd8+ {[%clk 0:02:02.9]} 32... Kf7 {[%clk 0:00:54.5]} 33.
Qd3 {[%clk 0:02:03.4]} 33... Qa5 {[%clk 0:00:46.2]} 34. a4 {[%clk 0:02:02.8]}
34... Qa6 {[%clk 0:00:45.2]} 35. Qd7+ {[%clk 0:02:00.4]} 35... Kf6 {[%clk
0:00:43.8]} 36. Qxh7 {[%clk 0:02:00.5]} 36... Qc8 {[%clk 0:00:43.2]} 37. Qh4+
{[%clk 0:01:58.2]} 37... Kf7 {[%clk 0:00:38.4]} 38. Qh7+ {[%clk 0:01:58.2]}
38... Kf6 {[%clk 0:00:38]} 39. Qxa7 {[%clk 0:01:56.7]} 39... Qd8 {[%clk
0:00:37.5]} 40. Qh7 {[%clk 0:01:56.8]} 40... Qd2 {[%clk 0:00:35.5]} 41. Qh4+
{[%clk 0:01:56.5]} 41... Kf7 {[%clk 0:00:32.8]} 42. Qe4 {[%clk 0:01:56.8]} 42...
Qc3 {[%clk 0:00:30.7]} 43. Qd3 {[%clk 0:01:56.2]} 1-0

[Event "*** Titled Tuesday Blitz"]
[Site "Chess.com"]
[Date "2020.03.03"]
[Round "2"]
[White "Alexander_Zubov"]
[Black "StockholmMissile"]
[Result "1-0"]
[WhiteElo "2903"]
[BlackElo "2393"]
[TimeControl "180+1"]
[EndTime "9:17:11 PST"]
[Termination "Alexander_Zubov won by resignation"]

1. d4 {[%clk 0:03:00.9]} 1... d5 {[%clk 0:02:59]} 2. c4 {[%clk 0:03:00.1]} 2...
c6 {[%clk 0:02:59.1]} 3. Nf3 {[%clk 0:02:59.9]} 3... Nf6 {[%clk 0:02:58.7]} 4.
Qb3 {[%clk 0:02:59.9]} 4... dxc4 {[%clk 0:02:55.1]} 5. Qxc4 {[%clk 0:03:00]}
5... Bg4 {[%clk 0:02:48.5]} 6. Nbd2 {[%clk 0:02:58.7]} 6... Nbd7 {[%clk
0:02:46.7]} 7. g3 {[%clk 0:02:58]} 7... e6 {[%clk 0:02:43.2]} 8. Bg2 {[%clk
0:02:57.2]} 8... Be7 {[%clk 0:02:42.1]} 9. Qb3 {[%clk 0:02:57.1]} 9... Qb6
{[%clk 0:02:40]} 10. Nc4 {[%clk 0:02:56.9]} 10... Qxb3 {[%clk 0:02:29.5]} 11.
axb3 {[%clk 0:02:56.1]} 11... O-O {[%clk 0:02:30.1]} 12. O-O {[%clk 0:02:53.7]}
12... Bf5 {[%clk 0:02:28.2]} 13. Na5 {[%clk 0:02:52.4]} 13... Nd5 {[%clk
0:01:38.2]} 14. Nxb7 {[%clk 0:02:43.7]} 14... Rfb8 {[%clk 0:01:26.8]} 15. Na5
{[%clk 0:02:42.3]} 15... Rc8 {[%clk 0:01:27.1]} 16. Bd2 {[%clk 0:02:35.7]} 16...
Be4 {[%clk 0:01:23.5]} 17. Rfc1 {[%clk 0:02:30.7]} 17... c5 {[%clk 0:01:22.1]}
18. Ne5 {[%clk 0:02:26]} 18... Bxg2 {[%clk 0:01:17.9]} 19. Nxd7 {[%clk
0:02:24.7]} 19... Be4 {[%clk 0:01:15.1]} 20. Nxc5 {[%clk 0:02:23.7]} 20... Bxc5
{[%clk 0:01:14.4]} 21. dxc5 {[%clk 0:02:22.9]} 21... h5 {[%clk 0:01:12.4]} 22.
f3 {[%clk 0:02:21.4]} 22... Bg6 {[%clk 0:01:11.3]} 23. e4 {[%clk 0:02:21]} 23...
Ne7 {[%clk 0:01:10.7]} 24. b4 {[%clk 0:02:13.6]} 24... f5 {[%clk 0:01:10.2]} 25.
exf5 {[%clk 0:02:06.3]} 25... Bxf5 {[%clk 0:01:06.1]} 26. Kf2 {[%clk 0:02:02.1]}
26... Nd5 {[%clk 0:01:05]} 27. c6 {[%clk 0:01:58.4]} 27... Rab8 {[%clk
0:01:00.5]} 28. Nb7 {[%clk 0:01:57.8]} 28... Ne7 {[%clk 0:00:50.3]} 29. b5
{[%clk 0:01:53.6]} 29... Bd3 {[%clk 0:00:44.2]} 30. Nd6 {[%clk 0:01:43.7]} 30...
Rc7 {[%clk 0:00:38.3]} 31. Ba5 {[%clk 0:01:40.9]} 31... Rxc6 {[%clk 0:00:22.2]}
32. bxc6 {[%clk 0:01:38.9]} 32... Rxb2+ {[%clk 0:00:22.2]} 33. Kg1 {[%clk
0:01:35.1]} 1-0

[Event "*** Titled Tuesday Blitz"]
[Site "Chess.com"]
[Date "2020.03.03"]
[Round "2"]
[White "Sunnika"]
[Black "Sibelephant"]
[Result "0-1"]
[WhiteElo "2398"]
[BlackElo "3046"]
[TimeControl "180+1"]
[EndTime "9:17:13 PST"]
[Termination "Sibelephant won by resignation"]

1. d4 {[%clk 0:02:19.8]} 1... Nf6 {[%clk 0:02:59.1]} 2. c4 {[%clk 0:02:17.5]}
2... g6 {[%clk 0:02:59]} 3. g3 {[%clk 0:02:16.1]} 3... Bg7 {[%clk 0:02:58.1]} 4.
Bg2 {[%clk 0:02:16.6]} 4... d5 {[%clk 0:02:58.7]} 5. cxd5 {[%clk 0:02:15.2]}
5... Nxd5 {[%clk 0:02:58.9]} 6. Nf3 {[%clk 0:02:15.7]} 6... Nb6 {[%clk
0:02:58.4]} 7. O-O {[%clk 0:02:16.2]} 7... Nc6 {[%clk 0:02:58.8]} 8. e3 {[%clk
0:02:15.8]} 8... O-O {[%clk 0:02:58.8]} 9. Nc3 {[%clk 0:02:15.2]} 9... Re8
{[%clk 0:02:59]} 10. b3 {[%clk 0:02:11.4]} 10... e5 {[%clk 0:02:58.4]} 11. dxe5
{[%clk 0:02:11.4]} 11... Nxe5 {[%clk 0:02:55.2]} 12. Nxe5 {[%clk 0:02:07.7]}
12... Bxe5 {[%clk 0:02:55.2]} 13. Bb2 {[%clk 0:02:05.9]} 13... c6 {[%clk
0:02:55.4]} 14. Qxd8 {[%clk 0:02:00.9]} 14... Rxd8 {[%clk 0:02:55.3]} 15. Rfd1
{[%clk 0:02:01.4]} 15... Be6 {[%clk 0:02:52.9]} 16. Rxd8+ {[%clk 0:01:59.6]}
16... Rxd8 {[%clk 0:02:52.9]} 17. Rd1 {[%clk 0:01:59.9]} 17... Rxd1+ {[%clk
0:02:35.7]} 18. Nxd1 {[%clk 0:01:59.4]} 18... Bxb2 {[%clk 0:02:35.7]} 19. Nxb2
{[%clk 0:02:00.3]} 19... Kf8 {[%clk 0:02:29.2]} 20. Kf1 {[%clk 0:01:59.8]} 20...
Ke7 {[%clk 0:02:28.3]} 21. Ke2 {[%clk 0:01:59.8]} 21... Kd6 {[%clk 0:02:28.5]}
22. Kd2 {[%clk 0:01:53.8]} 22... a5 {[%clk 0:02:27.5]} 23. e4 {[%clk 0:01:44.4]}
23... Nd7 {[%clk 0:02:05.9]} 24. f4 {[%clk 0:01:42.9]} 24... f6 {[%clk
0:02:05.7]} 25. Nd3 {[%clk 0:01:40]} 25... b5 {[%clk 0:01:45.2]} 26. e5+ {[%clk
0:01:30.6]} 26... fxe5 {[%clk 0:01:45.2]} 27. fxe5+ {[%clk 0:01:31.5]} 27...
Nxe5 {[%clk 0:01:37.9]} 28. Nxe5 {[%clk 0:01:30.9]} 28... Kxe5 {[%clk
0:01:38.5]} 29. Bxc6 {[%clk 0:01:30.6]} 29... b4 {[%clk 0:01:39.1]} 30. Ke3
{[%clk 0:01:30.1]} 30... Bf5 {[%clk 0:01:38.9]} 31. Kd2 {[%clk 0:01:15]} 31...
Kd4 {[%clk 0:01:36.9]} 32. Ba4 {[%clk 0:01:04.3]} 32... g5 {[%clk 0:01:30]} 33.
Bc6 {[%clk 0:00:56.1]} 33... h6 {[%clk 0:01:27.7]} 34. Ba4 {[%clk 0:00:54.8]}
34... Bb1 {[%clk 0:01:27.2]} 35. Kc1 {[%clk 0:00:54.4]} 35... Bg6 {[%clk
0:01:14.8]} 36. Kd2 {[%clk 0:00:52.9]} 36... Bf5 {[%clk 0:01:14.4]} 37. Bc6
{[%clk 0:00:50.6]} 37... Bb1 {[%clk 0:01:14.1]} 38. Kc1 {[%clk 0:00:50.2]} 38...
Be4 {[%clk 0:01:13.7]} 39. Kd2 {[%clk 0:00:50.2]} 39... Bxc6 {[%clk 0:01:13.2]}
0-1

[Event "*** Titled Tuesday Blitz"]
[Site "Chess.com"]
[Date "2020.03.03"]
[Round "2"]
[White "HrvojeZagreb"]
[Black "lestri"]
[Result "0-1"]
[WhiteElo "2196"]
[BlackElo "2494"]
[TimeControl "180+1"]
[EndTime "9:17:20 PST"]
[Termination "lestri won by resignation"]

1. d4 {[%clk 0:03:00.9]} 1... d6 {[%clk 0:02:59.3]} 2. e4 {[%clk 0:03:00.2]}
2... Nf6 {[%clk 0:02:58.6]} 3. Nc3 {[%clk 0:02:59.7]} 3... e5 {[%clk 0:02:59]}
4. Nf3 {[%clk 0:02:56.4]} 4... Nbd7 {[%clk 0:02:58.5]} 5. Bc4 {[%clk 0:02:55.8]}
5... Be7 {[%clk 0:02:58.5]} 6. a4 {[%clk 0:02:55.1]} 6... O-O {[%clk 0:02:58]}
7. O-O {[%clk 0:02:52]} 7... c6 {[%clk 0:02:57.9]} 8. h3 {[%clk 0:02:49.7]} 8...
a5 {[%clk 0:02:54.3]} 9. Ba2 {[%clk 0:02:49.1]} 9... exd4 {[%clk 0:02:48.9]} 10.
Qxd4 {[%clk 0:02:44.5]} 10... Nc5 {[%clk 0:02:48.6]} 11. Be3 {[%clk 0:02:27.1]}
11... Be6 {[%clk 0:02:47.1]} 12. Rfd1 {[%clk 0:02:18.3]} 12... Bxa2 {[%clk
0:02:45]} 13. Rxa2 {[%clk 0:02:19.2]} 13... Re8 {[%clk 0:02:40.1]} 14. e5 {[%clk
0:02:05.5]} 14... dxe5 {[%clk 0:02:38.3]} 15. Qxe5 {[%clk 0:02:02.9]} 15... Ncd7
{[%clk 0:02:37.1]} 16. Qf5 {[%clk 0:01:55.7]} 16... Bb4 {[%clk 0:02:27.4]} 17.
Bg5 {[%clk 0:01:49.7]} 17... Qe7 {[%clk 0:02:20.8]} 18. Raa1 {[%clk 0:01:34.7]}
18... h6 {[%clk 0:02:16.6]} 19. Bh4 {[%clk 0:01:34.2]} 19... Qc5 {[%clk
0:02:07]} 20. Qxc5 {[%clk 0:01:22.8]} 20... Bxc5 {[%clk 0:02:07.9]} 21. Rd3
{[%clk 0:01:20.5]} 21... g5 {[%clk 0:02:01.3]} 22. Bg3 {[%clk 0:01:19.5]} 22...
Nb6 {[%clk 0:02:01.3]} 23. Rad1 {[%clk 0:01:16.5]} 23... Nbd5 {[%clk 0:01:59.7]}
24. Nxd5 {[%clk 0:01:16.5]} 24... Nxd5 {[%clk 0:02:00.6]} 25. c4 {[%clk
0:01:07.9]} 25... Nf6 {[%clk 0:01:57.2]} 26. Be5 {[%clk 0:01:04.7]} 26... Ne4
{[%clk 0:01:53.6]} 27. Bd4 {[%clk 0:00:58.7]} 27... Rad8 {[%clk 0:01:50]} 28.
Bxc5 {[%clk 0:00:56.5]} 28... Rxd3 {[%clk 0:01:50.4]} 29. Rxd3 {[%clk
0:00:55.4]} 29... Nxc5 {[%clk 0:01:50.9]} 30. Rd4 {[%clk 0:00:45.6]} 30... Re2
{[%clk 0:01:46.2]} 31. Rd2 {[%clk 0:00:41.4]} 31... Rxd2 {[%clk 0:01:45.4]} 32.
Nxd2 {[%clk 0:00:42.3]} 32... Nxa4 {[%clk 0:01:45.9]} 33. b3 {[%clk 0:00:42.5]}
33... Nc5 {[%clk 0:01:45.5]} 34. f4 {[%clk 0:00:41.8]} 34... f5 {[%clk
0:01:40.8]} 35. fxg5 {[%clk 0:00:41.9]} 35... hxg5 {[%clk 0:01:41.7]} 36. Kf2
{[%clk 0:00:42.5]} 36... Kf7 {[%clk 0:01:39.6]} 37. Ke3 {[%clk 0:00:42.8]} 37...
Ke6 {[%clk 0:01:40.1]} 38. Kd4 {[%clk 0:00:42.7]} 38... Kd6 {[%clk 0:01:39.8]}
39. g3 {[%clk 0:00:40.7]} 39... b5 {[%clk 0:01:38.7]} 40. h4 {[%clk 0:00:39.9]}
40... f4 {[%clk 0:01:38.1]} 41. hxg5 {[%clk 0:00:38.1]} 41... fxg3 {[%clk
0:01:37.7]} 42. g6 {[%clk 0:00:37.4]} 42... g2 {[%clk 0:01:37.2]} 43. Ke3 {[%clk
0:00:32.7]} 43... g1=Q+ {[%clk 0:01:34.5]} 0-1

[Event "*** Titled Tuesday Blitz"]
[Site "Chess.com"]
[Date "2020.03.03"]
[Round "2"]
[White "alishersuleymenov"]
[Black "Willychess95"]
[Result "1-0"]
[WhiteElo "2769"]
[BlackElo "2551"]
[TimeControl "180+1"]
[EndTime "9:17:39 PST"]
[Termination "alishersuleymenov won by resignation"]

1. d4 {[%clk 0:02:58.7]} 1... Nf6 {[%clk 0:02:58.4]} 2. Bf4 {[%clk 0:02:54]}
2... e6 {[%clk 0:02:53.3]} 3. e3 {[%clk 0:02:51.3]} 3... d5 {[%clk 0:02:52.7]}
4. Nf3 {[%clk 0:02:49.9]} 4... c5 {[%clk 0:02:50.4]} 5. c3 {[%clk 0:02:47.5]}
5... Nc6 {[%clk 0:02:50.1]} 6. Nbd2 {[%clk 0:02:31.1]} 6... Bd6 {[%clk
0:02:48.4]} 7. Bg3 {[%clk 0:02:28.8]} 7... O-O {[%clk 0:02:42.8]} 8. Bd3 {[%clk
0:02:27.1]} 8... b6 {[%clk 0:02:41.5]} 9. Qe2 {[%clk 0:02:25.3]} 9... Bb7 {[%clk
0:02:35.8]} 10. Rd1 {[%clk 0:02:21.1]} 10... Qc7 {[%clk 0:02:35.6]} 11. e4
{[%clk 0:02:19.6]} 11... dxe4 {[%clk 0:01:42.8]} 12. Nxe4 {[%clk 0:02:17.8]}
12... Nxe4 {[%clk 0:01:40.6]} 13. Qxe4 {[%clk 0:02:12.7]} 13... g6 {[%clk
0:01:38.7]} 14. dxc5 {[%clk 0:02:09.7]} 14... Bxg3 {[%clk 0:01:21.3]} 15. hxg3
{[%clk 0:02:07.1]} 15... bxc5 {[%clk 0:01:19.7]} 16. Qh4 {[%clk 0:02:05]} 16...
f5 {[%clk 0:01:05.3]} 17. Bc4 {[%clk 0:01:57.2]} 17... Rae8 {[%clk 0:01:03.3]}
18. Ng5 {[%clk 0:01:51.7]} 18... Na5 {[%clk 0:00:42.5]} 19. Bxe6+ {[%clk
0:01:44.6]} 19... Rxe6+ {[%clk 0:00:42]} 20. Nxe6 {[%clk 0:01:44.9]} 20... Re8
{[%clk 0:00:37.4]} 21. Kf1 {[%clk 0:01:39]} 21... Qf7 {[%clk 0:00:09.2]} 22. Ng5
{[%clk 0:01:32.7]} 22... Qe7 {[%clk 0:00:05]} 23. Qxh7+ {[%clk 0:01:29.4]} 23...
Qxh7 {[%clk 0:00:05.1]} 24. Rxh7 {[%clk 0:01:29.9]} 24... Nc4 {[%clk 0:00:05.7]}
25. Rxb7 {[%clk 0:01:25.2]} 1-0

[Event "*** Titled Tuesday Blitz"]
[Site "Chess.com"]
[Date "2020.03.03"]
[Round "2"]
[White "inegrepus"]
[Black "Dino_Ballecer"]
[Result "0-1"]
[WhiteElo "2240"]
[BlackElo "2509"]
[TimeControl "180+1"]
[EndTime "9:17:39 PST"]
[Termination "Dino_Ballecer won on time"]

1. d4 {[%clk 0:02:13.6]} 1... c5 {[%clk 0:03:00.9]} 2. d5 {[%clk 0:02:13.4]}
2... Nf6 {[%clk 0:03:00.4]} 3. c4 {[%clk 0:02:13.5]} 3... e6 {[%clk 0:03:00.3]}
4. Nc3 {[%clk 0:02:13.5]} 4... exd5 {[%clk 0:03:00.7]} 5. cxd5 {[%clk
0:02:14.4]} 5... d6 {[%clk 0:03:01.3]} 6. g3 {[%clk 0:02:15]} 6... g6 {[%clk
0:03:00.9]} 7. Bg2 {[%clk 0:02:15.4]} 7... Bg7 {[%clk 0:03:00.4]} 8. Nf3 {[%clk
0:02:16.1]} 8... O-O {[%clk 0:02:59.7]} 9. O-O {[%clk 0:02:16.5]} 9... Re8
{[%clk 0:02:57]} 10. Bf4 {[%clk 0:02:16.5]} 10... a6 {[%clk 0:02:55.8]} 11. a4
{[%clk 0:02:16.5]} 11... Nh5 {[%clk 0:02:55.9]} 12. Bg5 {[%clk 0:02:16.8]} 12...
Bf6 {[%clk 0:02:55.3]} 13. Bxf6 {[%clk 0:02:16.5]} 13... Nxf6 {[%clk 0:02:54.9]}
14. Re1 {[%clk 0:02:16.5]} 14... Kg7 {[%clk 0:02:54.2]} 15. e4 {[%clk
0:02:15.9]} 15... Nbd7 {[%clk 0:02:54.3]} 16. Nd2 {[%clk 0:02:15.5]} 16... Rb8
{[%clk 0:02:51.6]} 17. Nc4 {[%clk 0:02:14.4]} 17... Ne5 {[%clk 0:02:50.3]} 18.
Nxe5 {[%clk 0:02:14.4]} 18... Rxe5 {[%clk 0:02:51.2]} 19. f4 {[%clk 0:02:14.8]}
19... Re8 {[%clk 0:02:51.1]} 20. e5 {[%clk 0:02:15.1]} 20... dxe5 {[%clk
0:02:43.3]} 21. fxe5 {[%clk 0:02:15.1]} 21... Ng4 {[%clk 0:02:43.9]} 22. e6
{[%clk 0:01:58.7]} 22... Nf6 {[%clk 0:02:42.9]} 23. exf7 {[%clk 0:01:55.2]}
23... Rxe1+ {[%clk 0:02:41.9]} 24. Qxe1 {[%clk 0:01:55]} 24... Kxf7 {[%clk
0:02:39]} 25. Qe5 {[%clk 0:01:53.1]} 25... Bf5 {[%clk 0:02:28.1]} 26. Rf1 {[%clk
0:01:49.9]} 26... Qe8 {[%clk 0:02:27.4]} 27. Qc7+ {[%clk 0:01:30.9]} 27... Kg8
{[%clk 0:02:26.5]} 28. d6 {[%clk 0:01:27.5]} 28... b5 {[%clk 0:02:12.6]} 29. Nd5
{[%clk 0:01:19.1]} 29... Nxd5 {[%clk 0:01:58.5]} 30. Bxd5+ {[%clk 0:01:20]}
30... Kh8 {[%clk 0:01:58.2]} 31. Qxc5 {[%clk 0:00:55.7]} 31... Qe5 {[%clk
0:01:57.6]} 32. Qc3 {[%clk 0:00:46.9]} 32... Qxc3 {[%clk 0:01:53.7]} 33. bxc3
{[%clk 0:00:47.8]} 33... bxa4 {[%clk 0:01:53.7]} 34. Bc6 {[%clk 0:00:35.7]}
34... a3 {[%clk 0:01:49.6]} 35. d7 {[%clk 0:00:32.4]} 35... a2 {[%clk 0:01:44]}
36. Re1 {[%clk 0:00:26.7]} 36... Bxd7 {[%clk 0:01:41.3]} 0-1